[Event "*** Titled Tuesday Blitz"]
[Site "Chess.com"]
[Date "2020.12.29"]
[Round "9"]
[White "maximnovik"]
[Black "comsac"]
[Result "1-0"]
[WhiteElo "2598"]
[BlackElo "2408"]
[TimeControl "180+1"]
[EndTime "11:42:09 PST"]
[Termination "maximnovik won by resignation"]

1. d4 {[%clk 0:02:57.6]} 1... d5 {[%clk 0:03:00.1]} 2. c4 {[%clk 0:02:56.9]}
2... e6 {[%clk 0:03:00.5]} 3. Nc3 {[%clk 0:02:56.3]} 3... Nf6 {[%clk 0:03:01]}
4. cxd5 {[%clk 0:02:56.2]} 4... exd5 {[%clk 0:03:01.9]} 5. Bg5 {[%clk
0:02:56.1]} 5... Be7 {[%clk 0:03:02.5]} 6. e3 {[%clk 0:02:56.5]} 6... O-O {[%clk
0:03:03.1]} 7. Bd3 {[%clk 0:02:56.8]} 7... c6 {[%clk 0:03:03.7]} 8. Nge2 {[%clk
0:02:54.5]} 8... Nbd7 {[%clk 0:03:03.9]} 9. O-O {[%clk 0:02:52.8]} 9... Re8
{[%clk 0:03:04.4]} 10. f3 {[%clk 0:02:52.2]} 10... Nf8 {[%clk 0:03:04.8]} 11. e4
{[%clk 0:02:46.1]} 11... dxe4 {[%clk 0:02:45.1]} 12. fxe4 {[%clk 0:02:45.7]}
12... Ne6 {[%clk 0:02:44.3]} 13. Bxf6 {[%clk 0:02:39.4]} 13... Bxf6 {[%clk
0:02:44.8]} 14. e5 {[%clk 0:02:39]} 14... Bg5 {[%clk 0:02:17.9]} 15. Kh1 {[%clk
0:02:35.7]} 15... g6 {[%clk 0:02:03.2]} 16. Bc4 {[%clk 0:02:29.3]} 16... b5
{[%clk 0:01:42.7]} 17. Bb3 {[%clk 0:02:28.7]} 17... b4 {[%clk 0:01:34.9]} 18.
Ne4 {[%clk 0:02:28]} 18... Ba6 {[%clk 0:01:29.3]} 19. Nd6 {[%clk 0:02:19.3]}
19... Rf8 {[%clk 0:00:57.2]} 20. Nxf7 {[%clk 0:02:12.6]} 20... Qe7 {[%clk
0:00:42]} 21. Nxg5 {[%clk 0:02:09.4]} 21... Qxg5 {[%clk 0:00:42.2]} 22. Bxe6+
{[%clk 0:02:08.4]} 22... Kg7 {[%clk 0:00:42.8]} 23. Rxf8 {[%clk 0:02:03.8]}
23... Rxf8 {[%clk 0:00:42.3]} 24. Ng3 {[%clk 0:02:03.6]} 24... h5 {[%clk
0:00:40.2]} 25. Qc1 {[%clk 0:01:55.3]} 25... Qe7 {[%clk 0:00:35.3]} 26. Qxc6
{[%clk 0:01:54.6]} 26... Bb7 {[%clk 0:00:34.7]} 27. Qd6 {[%clk 0:01:53.6]} 1-0

[Event "*** Titled Tuesday Blitz"]
[Site "Chess.com"]
[Date "2020.12.29"]
[Round "9"]
[White "Oleksandr_Bortnyk"]
[Black "Piotrek1979"]
[Result "1-0"]
[WhiteElo "2905"]
[BlackElo "2430"]
[TimeControl "180+1"]
[EndTime "11:42:25 PST"]
[Termination "Oleksandr_Bortnyk won by resignation"]

1. g4 {[%clk 0:03:00.9]} 1... e5 {[%clk 0:02:56.9]} 2. Bg2 {[%clk 0:02:58.5]}
2... h5 {[%clk 0:02:56.8]} 3. gxh5 {[%clk 0:02:50.7]} 3... Rxh5 {[%clk
0:02:55.3]} 4. d3 {[%clk 0:02:50.5]} 4... d5 {[%clk 0:02:52.6]} 5. Bxd5 {[%clk
0:02:46.5]} 5... Qxd5 {[%clk 0:01:33.3]} 6. e4 {[%clk 0:02:45.5]} 6... Qa5+
{[%clk 0:01:32.9]} 7. Bd2 {[%clk 0:02:45.7]} 7... Qb6 {[%clk 0:01:33.1]} 8. Qxh5
{[%clk 0:02:45.3]} 8... Qxb2 {[%clk 0:01:33.1]} 9. Bc3 {[%clk 0:02:45.6]} 9...
Bb4 {[%clk 0:01:23.8]} 10. Qxe5+ {[%clk 0:02:42]} 10... Be6 {[%clk 0:01:18]} 11.
Kd1 {[%clk 0:02:40.8]} 11... Bxc3 {[%clk 0:01:01.3]} 12. Qxc3 {[%clk 0:02:41.7]}
12... Qb6 {[%clk 0:01:01.3]} 13. Qxg7 {[%clk 0:02:40.5]} 13... Ne7 {[%clk
0:00:54.6]} 14. Ne2 {[%clk 0:02:35.3]} 14... Nbc6 {[%clk 0:00:44.3]} 15. Qh8+
{[%clk 0:02:33.2]} 15... Kd7 {[%clk 0:00:44.6]} 16. Qxa8 {[%clk 0:02:33.6]}
16... Qb2 {[%clk 0:00:44.6]} 17. Kd2 {[%clk 0:02:27.1]} 17... Qxa1 {[%clk
0:00:09.1]} 18. Qxb7 {[%clk 0:02:24.7]} 18... Qxa2 {[%clk 0:00:05.1]} 19. Nbc3
{[%clk 0:02:23.3]} 19... Qa5 {[%clk 0:00:05.4]} 20. Qb5 {[%clk 0:02:17.4]} 20...
Qa3 {[%clk 0:00:05.4]} 21. d4 {[%clk 0:02:08.9]} 21... a6 {[%clk 0:00:06]} 22.
Qc5 {[%clk 0:02:02.7]} 22... Qxc5 {[%clk 0:00:02.9]} 23. dxc5 {[%clk 0:02:03.6]}
23... Ng6 {[%clk 0:00:03.5]} 24. f4 {[%clk 0:02:03]} 24... Bc4 {[%clk
0:00:04.4]} 25. h4 {[%clk 0:02:02]} 25... f5 {[%clk 0:00:04.5]} 26. h5 {[%clk
0:02:01.5]} 26... Nge7 {[%clk 0:00:05.4]} 27. h6 {[%clk 0:02:01.4]} 27... fxe4
{[%clk 0:00:04.1]} 28. h7 {[%clk 0:02:01.9]} 28... e3+ {[%clk 0:00:04.4]} 29.
Kxe3 {[%clk 0:02:01.3]} 1-0

[Event "*** Titled Tuesday Blitz"]
[Site "Chess.com"]
[Date "2020.12.29"]
[Round "9"]
[White "vlad_Sid"]
[Black "Kislov_Oleg"]
[Result "0-1"]
[WhiteElo "2574"]
[BlackElo "2472"]
[TimeControl "180+1"]
[EndTime "11:42:25 PST"]
[Termination "Kislov_Oleg won by resignation"]

1. c4 {[%clk 0:03:00.9]} 1... e5 {[%clk 0:02:59.9]} 2. g3 {[%clk 0:03:01.3]}
2... Nf6 {[%clk 0:02:59.8]} 3. Bg2 {[%clk 0:03:01.9]} 3... c6 {[%clk 0:03:00.3]}
4. Nf3 {[%clk 0:03:01.8]} 4... e4 {[%clk 0:02:59]} 5. Nd4 {[%clk 0:03:02.2]}
5... d5 {[%clk 0:02:59.6]} 6. d3 {[%clk 0:03:02]} 6... c5 {[%clk 0:02:40.5]} 7.
Nb3 {[%clk 0:03:01.6]} 7... exd3 {[%clk 0:02:39.2]} 8. Qxd3 {[%clk 0:03:02.5]}
8... Be6 {[%clk 0:02:33.8]} 9. Nc3 {[%clk 0:02:58.1]} 9... d4 {[%clk 0:02:13.3]}
10. Bxb7 {[%clk 0:02:55.8]} 10... Nbd7 {[%clk 0:02:13.4]} 11. Ne4 {[%clk
0:02:54.1]} 11... Rb8 {[%clk 0:02:06.9]} 12. Nxf6+ {[%clk 0:02:51.3]} 12... Qxf6
{[%clk 0:02:01]} 13. Bc6 {[%clk 0:02:43.9]} 13... Bd6 {[%clk 0:01:57.1]} 14. Nd2
{[%clk 0:02:35.6]} 14... O-O {[%clk 0:01:50]} 15. Bg2 {[%clk 0:02:27.5]} 15...
Ne5 {[%clk 0:01:49.7]} 16. Qc2 {[%clk 0:02:24.2]} 16... Rb4 {[%clk 0:01:42.6]}
17. b3 {[%clk 0:02:22.3]} 17... d3 {[%clk 0:01:42.8]} 18. exd3 {[%clk
0:02:15.7]} 18... Nxd3+ {[%clk 0:01:14.5]} 19. Qxd3 {[%clk 0:02:16.6]} 19...
Qxa1 {[%clk 0:01:14.4]} 20. O-O {[%clk 0:02:17.1]} 20... Qd4 {[%clk 0:01:01.9]}
21. Qxd4 {[%clk 0:02:16.7]} 21... cxd4 {[%clk 0:01:01.8]} 22. Ba3 {[%clk
0:02:17.6]} 22... Rb6 {[%clk 0:01:02.1]} 23. Bb2 {[%clk 0:02:12]} 23... Bb4
{[%clk 0:00:55.7]} 24. Ne4 {[%clk 0:02:01.5]} 24... Rd8 {[%clk 0:00:55.1]} 25.
Rd1 {[%clk 0:01:59.3]} 25... d3 {[%clk 0:00:55.2]} 26. Bf1 {[%clk 0:01:58.8]}
26... d2 {[%clk 0:00:55.6]} 27. f3 {[%clk 0:01:47.9]} 27... Bf5 {[%clk
0:00:51.5]} 28. a3 {[%clk 0:01:41]} 28... Bxe4 {[%clk 0:00:46.7]} 29. fxe4
{[%clk 0:01:41.9]} 29... Bc5+ {[%clk 0:00:47.3]} 30. Kg2 {[%clk 0:01:41.2]}
30... Rxb3 {[%clk 0:00:47.6]} 31. Bc1 {[%clk 0:01:37.6]} 31... dxc1=Q {[%clk
0:00:41.3]} 32. Rxd8+ {[%clk 0:01:36.4]} 32... Bf8 {[%clk 0:00:41.3]} 0-1

[Event "*** Titled Tuesday Blitz"]
[Site "Chess.com"]
[Date "2020.12.29"]
[Round "9"]
[White "Kaslask"]
[Black "ClydeHillKid"]
[Result "0-1"]
[WhiteElo "2270"]
[BlackElo "2386"]
[TimeControl "180+1"]
[EndTime "11:42:28 PST"]
[Termination "ClydeHillKid won by resignation"]

1. e4 {[%clk 0:02:55]} 1... e6 {[%clk 0:02:59.3]} 2. d4 {[%clk 0:02:52.7]} 2...
d5 {[%clk 0:02:59.4]} 3. Nc3 {[%clk 0:02:52.3]} 3... Nf6 {[%clk 0:02:59.1]} 4.
Qd3 {[%clk 0:02:51.6]} 4... Nc6 {[%clk 0:02:37.7]} 5. e5 {[%clk 0:02:44.9]} 5...
Nd7 {[%clk 0:02:37.3]} 6. a3 {[%clk 0:02:40.8]} 6... f6 {[%clk 0:02:36.4]} 7.
exf6 {[%clk 0:02:29.2]} 7... Nxf6 {[%clk 0:02:37.3]} 8. Nf3 {[%clk 0:02:28.4]}
8... Bd6 {[%clk 0:02:33.8]} 9. Bg5 {[%clk 0:02:27.2]} 9... O-O {[%clk
0:02:31.3]} 10. O-O-O {[%clk 0:02:24.5]} 10... a6 {[%clk 0:02:24]} 11. h3 {[%clk
0:02:22.4]} 11... b5 {[%clk 0:02:22.3]} 12. Ne2 {[%clk 0:02:15.6]} 12... b4
{[%clk 0:02:13.8]} 13. a4 {[%clk 0:02:12.8]} 13... a5 {[%clk 0:02:02.7]} 14. Ng3
{[%clk 0:02:05]} 14... Ba6 {[%clk 0:02:02]} 15. Qe3 {[%clk 0:02:03.4]} 15... Qd7
{[%clk 0:01:55.4]} 16. Bxa6 {[%clk 0:01:58.8]} 16... Rxa6 {[%clk 0:01:56.3]} 17.
Rhe1 {[%clk 0:01:56.6]} 17... Nd8 {[%clk 0:01:53.4]} 18. Ne5 {[%clk 0:01:52.2]}
18... Bxe5 {[%clk 0:01:53.1]} 19. Qxe5 {[%clk 0:01:49.4]} 19... Qxa4 {[%clk
0:01:51.7]} 20. Kb1 {[%clk 0:01:46.5]} 20... b3 {[%clk 0:01:50.7]} 21. cxb3
{[%clk 0:01:44.8]} 21... Qxb3 {[%clk 0:01:50.8]} 22. Qxc7 {[%clk 0:01:31.5]}
22... Rc6 {[%clk 0:01:42.5]} 23. Qe7 {[%clk 0:01:11.8]} 23... Qc2+ {[%clk
0:01:41.3]} 24. Ka2 {[%clk 0:01:10.8]} 24... Rc4 {[%clk 0:01:41.3]} 25. Re3
{[%clk 0:00:39.9]} 25... Ra4+ {[%clk 0:01:32.9]} 26. Ra3 {[%clk 0:00:37]} 26...
Rxa3+ {[%clk 0:01:32.8]} 27. Kxa3 {[%clk 0:00:35.8]} 27... Qxd1 {[%clk
0:01:32.7]} 28. Bxf6 {[%clk 0:00:32.6]} 28... gxf6 {[%clk 0:01:32.3]} 29. Nh5
{[%clk 0:00:30.4]} 29... Qxh5 {[%clk 0:01:31.6]} 0-1

[Event "*** Titled Tuesday Blitz"]
[Site "Chess.com"]
[Date "2020.12.29"]
[Round "9"]
[White "TheKingDoctor"]
[Black "zverr1"]
[Result "0-1"]
[WhiteElo "2200"]
[BlackElo "2425"]
[TimeControl "180+1"]
[EndTime "11:42:31 PST"]
[Termination "zverr1 won by checkmate"]

1. e4 {[%clk 0:03:00.9]} 1... c6 {[%clk 0:02:58.1]} 2. d4 {[%clk 0:02:59.5]}
2... d5 {[%clk 0:02:58]} 3. exd5 {[%clk 0:03:00.4]} 3... cxd5 {[%clk 0:02:58.9]}
4. c4 {[%clk 0:03:01.3]} 4... Nf6 {[%clk 0:02:56.3]} 5. Nc3 {[%clk 0:03:00.5]}
5... g6 {[%clk 0:02:55.3]} 6. Nf3 {[%clk 0:02:59.2]} 6... Bg7 {[%clk 0:02:54.4]}
7. Bd3 {[%clk 0:02:49.5]} 7... dxc4 {[%clk 0:02:53.4]} 8. Bxc4 {[%clk
0:02:50.4]} 8... O-O {[%clk 0:02:53.9]} 9. O-O {[%clk 0:02:50.5]} 9... b6 {[%clk
0:02:54.4]} 10. Re1 {[%clk 0:02:42.8]} 10... Bb7 {[%clk 0:02:54.1]} 11. Ne5
{[%clk 0:02:34.4]} 11... Nc6 {[%clk 0:02:51.3]} 12. Nxc6 {[%clk 0:02:15.5]}
12... Bxc6 {[%clk 0:02:52.2]} 13. Bf4 {[%clk 0:01:59]} 13... e6 {[%clk
0:02:49.5]} 14. Qd2 {[%clk 0:01:55.2]} 14... Nd5 {[%clk 0:02:41]} 15. Bh6 {[%clk
0:01:50.5]} 15... Nxc3 {[%clk 0:02:33.5]} 16. bxc3 {[%clk 0:01:48.6]} 16... Bd5
{[%clk 0:02:34]} 17. Bxg7 {[%clk 0:01:39.7]} 17... Kxg7 {[%clk 0:02:32.3]} 18.
Bxd5 {[%clk 0:01:36.5]} 18... Qxd5 {[%clk 0:02:33.2]} 19. Re5 {[%clk 0:01:34.5]}
19... Qc4 {[%clk 0:02:33.3]} 20. Rae1 {[%clk 0:01:29.1]} 20... Rac8 {[%clk
0:02:33.3]} 21. R5e3 {[%clk 0:01:21.9]} 21... Rfd8 {[%clk 0:02:33.3]} 22. f4
{[%clk 0:01:20.2]} 22... Rd5 {[%clk 0:02:32]} 23. g3 {[%clk 0:01:19.6]} 23... b5
{[%clk 0:02:29.7]} 24. Kg2 {[%clk 0:01:16.3]} 24... h5 {[%clk 0:02:28.4]} 25.
Rb1 {[%clk 0:01:07]} 25... a5 {[%clk 0:02:26.3]} 26. Qb2 {[%clk 0:01:06.7]}
26... b4 {[%clk 0:02:20.1]} 27. cxb4 {[%clk 0:01:04.8]} 27... axb4 {[%clk
0:02:15.5]} 28. Qxb4 {[%clk 0:00:59.9]} 28... Qxb4 {[%clk 0:02:12.8]} 29. Rxb4
{[%clk 0:01:00.8]} 29... Rc2+ {[%clk 0:02:13.2]} 30. Kf3 {[%clk 0:00:58.7]}
30... Rxa2 {[%clk 0:02:13.7]} 31. Re2 {[%clk 0:00:56.3]} 31... Ra3+ {[%clk
0:02:10.4]} 32. Re3 {[%clk 0:00:55.8]} 32... Ra2 {[%clk 0:02:10.7]} 33. Re2
{[%clk 0:00:56]} 33... Ra1 {[%clk 0:02:09.9]} 34. Kg2 {[%clk 0:00:53.2]} 34...
Rd1 {[%clk 0:02:09.5]} 35. Re4 {[%clk 0:00:50.5]} 35... Rd2+ {[%clk 0:02:09.8]}
36. Kg1 {[%clk 0:00:49.9]} 36... Ra5 {[%clk 0:02:09.5]} 37. Re1 {[%clk
0:00:44.5]} 37... Raa2 {[%clk 0:02:07.4]} 38. Rb7 {[%clk 0:00:35.3]} 38... Rg2+
{[%clk 0:02:05.5]} 39. Kf1 {[%clk 0:00:34.3]} 39... Raf2# {[%clk 0:02:05]} 0-1

[Event "*** Titled Tuesday Blitz"]
[Site "Chess.com"]
[Date "2020.12.29"]
[Round "9"]
[White "ulkaf961"]
[Black "Ladislav1969"]
[Result "0-1"]
[WhiteElo "2289"]
[BlackElo "2402"]
[TimeControl "180+1"]
[EndTime "11:42:47 PST"]
[Termination "Ladislav1969 won by resignation"]

1. d4 {[%clk 0:03:00.9]} 1... Nf6 {[%clk 0:02:59.2]} 2. c4 {[%clk 0:03:00.2]}
2... g6 {[%clk 0:02:59.9]} 3. Nc3 {[%clk 0:02:59.7]} 3... d5 {[%clk 0:03:00.6]}
4. cxd5 {[%clk 0:02:55.7]} 4... Nxd5 {[%clk 0:03:01.5]} 5. e4 {[%clk 0:02:54.6]}
5... Nxc3 {[%clk 0:03:02.4]} 6. bxc3 {[%clk 0:02:55.1]} 6... c5 {[%clk
0:03:03.3]} 7. Be3 {[%clk 0:02:48.4]} 7... Bg7 {[%clk 0:03:03]} 8. Qd2 {[%clk
0:02:45.6]} 8... cxd4 {[%clk 0:02:49.9]} 9. cxd4 {[%clk 0:02:45.3]} 9... Nc6
{[%clk 0:02:50.1]} 10. Nf3 {[%clk 0:02:44.4]} 10... Bg4 {[%clk 0:02:47.2]} 11.
Rd1 {[%clk 0:02:39.5]} 11... Bxf3 {[%clk 0:02:43.3]} 12. gxf3 {[%clk 0:02:39.1]}
12... O-O {[%clk 0:02:41.8]} 13. Bc4 {[%clk 0:02:37.8]} 13... e5 {[%clk
0:02:39]} 14. d5 {[%clk 0:02:36]} 14... Nd4 {[%clk 0:02:38.8]} 15. Bxd4 {[%clk
0:02:31.7]} 15... exd4 {[%clk 0:02:38]} 16. f4 {[%clk 0:02:24.7]} 16... Rc8
{[%clk 0:02:26.1]} 17. Bb3 {[%clk 0:02:21.6]} 17... Qh4 {[%clk 0:02:10.3]} 18.
Kf1 {[%clk 0:01:55.3]} 18... Rc3 {[%clk 0:01:42.4]} 19. e5 {[%clk 0:01:28.8]}
19... Rf3 {[%clk 0:01:31.5]} 20. d6 {[%clk 0:01:03.6]} 20... Rxf4 {[%clk
0:01:20.3]} 21. Re1 {[%clk 0:01:03.6]} 21... Qh3+ {[%clk 0:01:06.3]} 22. Ke2
{[%clk 0:01:00.3]} 22... Bh6 {[%clk 0:01:06.3]} 23. Kd1 {[%clk 0:00:55.2]} 23...
Rxf2 {[%clk 0:00:55.6]} 24. Qxd4 {[%clk 0:00:49.9]} 24... Qf3+ {[%clk
0:00:50.4]} 0-1

[Event "*** Titled Tuesday Blitz"]
[Site "Chess.com"]
[Date "2020.12.29"]
[Round "9"]
[White "profofchess"]
[Black "szabadaba"]
[Result "0-1"]
[WhiteElo "2404"]
[BlackElo "2585"]
[TimeControl "180+1"]
[EndTime "11:42:52 PST"]
[Termination "szabadaba won by resignation"]

1. e4 {[%clk 0:03:00.9]} 1... c6 {[%clk 0:02:59.9]} 2. Nf3 {[%clk 0:02:58.5]}
2... d5 {[%clk 0:03:00.8]} 3. Nc3 {[%clk 0:02:58.3]} 3... dxe4 {[%clk
0:03:00.6]} 4. Nxe4 {[%clk 0:02:58.3]} 4... Nd7 {[%clk 0:03:01.3]} 5. Bc4 {[%clk
0:02:48.8]} 5... Ngf6 {[%clk 0:03:00.9]} 6. Neg5 {[%clk 0:02:47.5]} 6... Nd5
{[%clk 0:03:00.7]} 7. Qe2 {[%clk 0:02:23]} 7... h6 {[%clk 0:02:59.3]} 8. Ne4
{[%clk 0:01:38.6]} 8... N7f6 {[%clk 0:02:58.7]} 9. Ne5 {[%clk 0:01:28.3]} 9...
Bf5 {[%clk 0:02:32.8]} 10. d3 {[%clk 0:01:10.1]} 10... e6 {[%clk 0:02:28.1]} 11.
O-O {[%clk 0:01:01.6]} 11... Qc7 {[%clk 0:02:23.2]} 12. Nxf6+ {[%clk 0:00:56.5]}
12... gxf6 {[%clk 0:02:22]} 13. Nf3 {[%clk 0:00:46]} 13... Bg4 {[%clk
0:02:11.5]} 14. h3 {[%clk 0:00:45.6]} 14... Bh5 {[%clk 0:02:11.2]} 15. Qe4
{[%clk 0:00:31.3]} 15... f5 {[%clk 0:02:06]} 16. Qe5 {[%clk 0:00:29.6]} 16...
Qxe5 {[%clk 0:02:05.8]} 17. Nxe5 {[%clk 0:00:30.3]} 17... Bg7 {[%clk 0:02:05.8]}
18. f4 {[%clk 0:00:27.1]} 18... O-O-O {[%clk 0:01:53.5]} 19. Bd2 {[%clk
0:00:24.6]} 19... Rhg8 {[%clk 0:01:46.1]} 20. Rae1 {[%clk 0:00:21.7]} 20... Bf6
{[%clk 0:01:45.3]} 21. Be3 {[%clk 0:00:08.5]} 21... Nxe3 {[%clk 0:01:43.5]} 22.
Rxe3 {[%clk 0:00:08.5]} 22... Kc7 {[%clk 0:01:33]} 23. g3 {[%clk 0:00:08.8]}
23... b5 {[%clk 0:01:29.9]} 24. Bb3 {[%clk 0:00:08.6]} 24... a5 {[%clk
0:01:29.6]} 25. a4 {[%clk 0:00:08.8]} 25... Be7 {[%clk 0:01:29]} 26. Kh2 {[%clk
0:00:07.8]} 26... Bc5 {[%clk 0:01:27.8]} 27. Re2 {[%clk 0:00:07.9]} 27... Bxe2
{[%clk 0:01:27.1]} 0-1

[Event "*** Titled Tuesday Blitz"]
[Site "Chess.com"]
[Date "2020.12.29"]
[Round "9"]
[White "MelihKaanCan"]
[Black "andriipalchuk"]
[Result "0-1"]
[WhiteElo "2330"]
[BlackElo "2495"]
[TimeControl "180+1"]
[EndTime "11:42:52 PST"]
[Termination "andriipalchuk won on time"]

1. e4 {[%clk 0:02:39]} 1... c6 {[%clk 0:02:56.6]} 2. d4 {[%clk 0:02:38.8]} 2...
d5 {[%clk 0:02:54.7]} 3. e5 {[%clk 0:02:39.2]} 3... c5 {[%clk 0:02:54.8]} 4.
dxc5 {[%clk 0:02:40.1]} 4... e6 {[%clk 0:02:54.8]} 5. a3 {[%clk 0:02:39.9]} 5...
Bxc5 {[%clk 0:02:54]} 6. b4 {[%clk 0:02:40.4]} 6... Bb6 {[%clk 0:02:54.5]} 7.
Nf3 {[%clk 0:02:40.5]} 7... Nc6 {[%clk 0:02:55]} 8. Bb2 {[%clk 0:02:40.9]} 8...
Nge7 {[%clk 0:02:55.5]} 9. Bd3 {[%clk 0:02:31.8]} 9... Ng6 {[%clk 0:02:55]} 10.
g3 {[%clk 0:02:28.1]} 10... O-O {[%clk 0:02:52.3]} 11. h4 {[%clk 0:02:27.5]}
11... f6 {[%clk 0:02:52.3]} 12. exf6 {[%clk 0:02:23.8]} 12... gxf6 {[%clk
0:02:53.2]} 13. h5 {[%clk 0:02:01]} 13... Nge5 {[%clk 0:02:52.6]} 14. Nbd2
{[%clk 0:01:37.6]} 14... Nxd3+ {[%clk 0:02:50.2]} 15. cxd3 {[%clk 0:01:38.5]}
15... e5 {[%clk 0:02:50.1]} 16. Nh4 {[%clk 0:01:26.6]} 16... f5 {[%clk
0:02:49.4]} 17. Nb3 {[%clk 0:01:14.3]} 17... Re8 {[%clk 0:02:45.4]} 18. Qd2
{[%clk 0:01:01.2]} 18... Be6 {[%clk 0:02:33.5]} 19. Nc5 {[%clk 0:00:55.4]} 19...
Bxc5 {[%clk 0:02:30.9]} 20. bxc5 {[%clk 0:00:56.3]} 20... d4 {[%clk 0:02:27.4]}
21. O-O {[%clk 0:00:49.6]} 21... Qf6 {[%clk 0:02:23.4]} 22. f4 {[%clk
0:00:43.2]} 22... e4 {[%clk 0:02:20.7]} 23. dxe4 {[%clk 0:00:43.4]} 23... fxe4
{[%clk 0:02:21.6]} 24. f5 {[%clk 0:00:44.3]} 24... Bc4 {[%clk 0:02:15.6]} 25.
Rf4 {[%clk 0:00:39.7]} 25... Rad8 {[%clk 0:02:09.8]} 26. Re1 {[%clk 0:00:33.3]}
26... e3 {[%clk 0:02:05]} 27. Qc1 {[%clk 0:00:32.6]} 27... Bf7 {[%clk
0:02:03.9]} 28. Rxe3 {[%clk 0:00:27.8]} 28... Rxe3 {[%clk 0:02:03.3]} 29. Qxe3
{[%clk 0:00:27.4]} 29... dxe3 {[%clk 0:02:03.9]} 30. Bxf6 {[%clk 0:00:27.8]}
30... Rd1+ {[%clk 0:02:03.8]} 31. Kg2 {[%clk 0:00:26.3]} 31... e2 {[%clk
0:02:04.3]} 32. Nf3 {[%clk 0:00:22.2]} 32... Bd5 {[%clk 0:02:03.9]} 33. Rg4+
{[%clk 0:00:03.3]} 33... Kf8 {[%clk 0:02:03.9]} 34. Bg7+ {[%clk 0:00:02.5]}
34... Kf7 {[%clk 0:02:03.1]} 35. Kf2 {[%clk 0:00:02.1]} 35... Bxf3 {[%clk
0:02:02]} 0-1

[Event "*** Titled Tuesday Blitz"]
[Site "Chess.com"]
[Date "2020.12.29"]
[Round "9"]
[White "FishThatRoared"]
[Black "Alexandercs432"]
[Result "1-0"]
[WhiteElo "2117"]
[BlackElo "2180"]
[TimeControl "180+1"]
[EndTime "11:43:09 PST"]
[Termination "FishThatRoared won on time"]

1. e4 {[%clk 0:03:00.9]} 1... c5 {[%clk 0:02:58.7]} 2. d4 {[%clk 0:03:00.6]}
2... cxd4 {[%clk 0:02:58.6]} 3. c3 {[%clk 0:03:01.1]} 3... d5 {[%clk 0:02:59]}
4. exd5 {[%clk 0:03:00.4]} 4... Qxd5 {[%clk 0:02:59.9]} 5. cxd4 {[%clk
0:03:00.7]} 5... e6 {[%clk 0:03:00]} 6. Nf3 {[%clk 0:02:59.3]} 6... Nf6 {[%clk
0:03:00]} 7. Bd3 {[%clk 0:02:59.3]} 7... Be7 {[%clk 0:02:59.2]} 8. O-O {[%clk
0:02:59.6]} 8... O-O {[%clk 0:02:59.2]} 9. Nc3 {[%clk 0:02:59.9]} 9... Qd6
{[%clk 0:02:59.2]} 10. Re1 {[%clk 0:02:48.9]} 10... Nc6 {[%clk 0:02:58]} 11. a3
{[%clk 0:02:45.5]} 11... a6 {[%clk 0:02:57.7]} 12. Bg5 {[%clk 0:02:29.6]} 12...
b5 {[%clk 0:02:57.3]} 13. Bc2 {[%clk 0:02:24]} 13... Bb7 {[%clk 0:02:55.7]} 14.
Qd3 {[%clk 0:02:22.7]} 14... g6 {[%clk 0:02:56.2]} 15. Rad1 {[%clk 0:02:19.8]}
15... Rfe8 {[%clk 0:02:52.2]} 16. Bxf6 {[%clk 0:02:01]} 16... Bxf6 {[%clk
0:02:51.7]} 17. Ne4 {[%clk 0:02:01.4]} 17... Qe7 {[%clk 0:02:51.3]} 18. Nc5
{[%clk 0:01:59.8]} 18... Rad8 {[%clk 0:02:39.3]} 19. Nxb7 {[%clk 0:01:26.3]}
19... Qxb7 {[%clk 0:02:40.2]} 20. Qe4 {[%clk 0:01:24.5]} 20... Qb6 {[%clk
0:02:21.6]} 21. Qf4 {[%clk 0:01:07.6]} 1-0

[Event "*** Titled Tuesday Blitz"]
[Site "Chess.com"]
[Date "2020.12.29"]
[Round "9"]
[White "Andrakhanova"]
[Black "ChrisTool2"]
[Result "1-0"]
[WhiteElo "2267"]
[BlackElo "2359"]
[TimeControl "180+1"]
[EndTime "11:43:11 PST"]
[Termination "Andrakhanova won by checkmate"]

1. c4 {[%clk 0:02:55.6]} 1... c5 {[%clk 0:02:45.6]} 2. g3 {[%clk 0:02:54.7]}
2... Nf6 {[%clk 0:02:41.2]} 3. Bg2 {[%clk 0:02:54.2]} 3... e6 {[%clk 0:02:40.5]}
4. Nf3 {[%clk 0:02:53.3]} 4... d6 {[%clk 0:02:37.7]} 5. O-O {[%clk 0:02:52.5]}
5... Be7 {[%clk 0:02:38]} 6. d4 {[%clk 0:02:52.7]} 6... cxd4 {[%clk 0:02:37.7]}
7. Nxd4 {[%clk 0:02:53.6]} 7... O-O {[%clk 0:02:37]} 8. Nc3 {[%clk 0:02:53.5]}
8... a6 {[%clk 0:02:37.4]} 9. b3 {[%clk 0:02:51.4]} 9... Qc7 {[%clk 0:02:37.2]}
10. Bb2 {[%clk 0:02:49]} 10... Nbd7 {[%clk 0:02:37.3]} 11. Rc1 {[%clk
0:02:48.4]} 11... Ne5 {[%clk 0:02:22.7]} 12. Qc2 {[%clk 0:02:44.7]} 12... Bd7
{[%clk 0:02:21.1]} 13. Rfd1 {[%clk 0:02:41.6]} 13... Rad8 {[%clk 0:02:10.5]} 14.
h3 {[%clk 0:02:36.8]} 14... Qb6 {[%clk 0:02:03]} 15. Kh2 {[%clk 0:02:33.3]}
15... Rc8 {[%clk 0:02:01.2]} 16. f4 {[%clk 0:02:23.4]} 16... Ng6 {[%clk
0:01:52.9]} 17. e4 {[%clk 0:02:22.8]} 17... h5 {[%clk 0:01:44.9]} 18. f5 {[%clk
0:02:19.3]} 18... Ne5 {[%clk 0:01:39.5]} 19. fxe6 {[%clk 0:02:12.7]} 19... fxe6
{[%clk 0:01:40.4]} 20. Nf3 {[%clk 0:01:59.1]} 20... Nxf3+ {[%clk 0:00:57.6]} 21.
Bxf3 {[%clk 0:02:00]} 21... h4 {[%clk 0:00:58.2]} 22. Qg2 {[%clk 0:01:50.8]}
22... Nh7 {[%clk 0:00:33.5]} 23. Bg4 {[%clk 0:01:34.7]} 23... Bg5 {[%clk
0:00:29.4]} 24. Rc2 {[%clk 0:01:32.2]} 24... hxg3+ {[%clk 0:00:28.9]} 25. Kh1
{[%clk 0:01:30.3]} 25... Rf2 {[%clk 0:00:20.6]} 26. Rxf2 {[%clk 0:01:29.5]}
26... gxf2 {[%clk 0:00:21.3]} 27. Rf1 {[%clk 0:01:25.2]} 27... Rf8 {[%clk
0:00:20.8]} 28. Nd1 {[%clk 0:01:23.3]} 28... Bh4 {[%clk 0:00:19.7]} 29. Bxe6+
{[%clk 0:01:17.3]} 29... Rf7 {[%clk 0:00:03.3]} 30. Qxg7# {[%clk 0:01:18.2]} 1-0